[Event "*** Titled Tuesday Blitz"]
[Site "Chess.com"]
[Date "2020.12.29"]
[Round "7"]
[White "Sjakkerntobi"]
[Black "NeverW84M8"]
[Result "0-1"]
[WhiteElo "2330"]
[BlackElo "2506"]
[TimeControl "180+1"]
[EndTime "11:14:55 PST"]
[Termination "NeverW84M8 won by resignation"]

1. e4 {[%clk 0:03:00.9]} 1... c5 {[%clk 0:03:00.2]} 2. Nf3 {[%clk 0:03:00.3]}
2... d6 {[%clk 0:03:00.8]} 3. d4 {[%clk 0:03:00.9]} 3... cxd4 {[%clk 0:03:01.7]}
4. Qxd4 {[%clk 0:03:01.5]} 4... Nf6 {[%clk 0:03:02.6]} 5. Nc3 {[%clk 0:03:01.6]}
5... a6 {[%clk 0:03:01.3]} 6. Bg5 {[%clk 0:03:00.9]} 6... Nbd7 {[%clk
0:03:01.5]} 7. Qd2 {[%clk 0:02:56.6]} 7... e6 {[%clk 0:03:01.3]} 8. O-O-O {[%clk
0:02:56.3]} 8... Qc7 {[%clk 0:03:01.2]} 9. Nd4 {[%clk 0:02:56.2]} 9... b5 {[%clk
0:03:00.8]} 10. a3 {[%clk 0:02:46.6]} 10... Bb7 {[%clk 0:02:59.9]} 11. Bd3
{[%clk 0:02:30.8]} 11... Ne5 {[%clk 0:02:58.6]} 12. f4 {[%clk 0:02:22.2]} 12...
Nxd3+ {[%clk 0:02:57.3]} 13. Qxd3 {[%clk 0:02:19.2]} 13... Rc8 {[%clk
0:02:57.4]} 14. Kb1 {[%clk 0:02:15.8]} 14... Qc4 {[%clk 0:02:56.5]} 15. Qe3
{[%clk 0:02:02.4]} 15... Be7 {[%clk 0:02:56.2]} 16. f5 {[%clk 0:01:44.7]} 16...
e5 {[%clk 0:02:53.8]} 17. Bxf6 {[%clk 0:01:32]} 17... Bxf6 {[%clk 0:02:48]} 18.
Nb3 {[%clk 0:01:28.1]} 18... Qc7 {[%clk 0:02:47.1]} 19. g4 {[%clk 0:01:24.5]}
19... h6 {[%clk 0:02:45.9]} 20. h4 {[%clk 0:01:23.2]} 20... Be7 {[%clk
0:02:20.1]} 21. g5 {[%clk 0:01:19.1]} 21... Bc6 {[%clk 0:02:18]} 22. f6 {[%clk
0:00:58.5]} 22... gxf6 {[%clk 0:02:17.5]} 23. gxh6 {[%clk 0:00:58.7]} 23... f5
{[%clk 0:02:08.3]} 24. exf5 {[%clk 0:00:34.3]} 24... Bxh1 {[%clk 0:02:07.3]} 25.
Rxh1 {[%clk 0:00:35.2]} 25... Bf8 {[%clk 0:01:52.3]} 26. Qe4 {[%clk 0:00:30.2]}
26... Rxh6 {[%clk 0:01:47.9]} 27. Rd1 {[%clk 0:00:15.9]} 27... Qc6 {[%clk
0:01:47.3]} 28. Nd5 {[%clk 0:00:15.4]} 28... Qc4 {[%clk 0:01:46.7]} 29. Qe2
{[%clk 0:00:11.3]} 29... Qxe2 {[%clk 0:01:45.9]} 0-1

[Event "*** Titled Tuesday Blitz"]
[Site "Chess.com"]
[Date "2020.12.29"]
[Round "7"]
[White "cukin84"]
[Black "esskeettit"]
[Result "0-1"]
[WhiteElo "2194"]
[BlackElo "2475"]
[TimeControl "180+1"]
[EndTime "11:15:00 PST"]
[Termination "esskeettit won by resignation"]

1. e4 {[%clk 0:03:00.9]} 1... c5 {[%clk 0:02:59.7]} 2. Nc3 {[%clk 0:03:00.1]}
2... Nc6 {[%clk 0:02:58.9]} 3. Bb5 {[%clk 0:02:59.3]} 3... g6 {[%clk 0:02:57.1]}
4. Bxc6 {[%clk 0:02:59.2]} 4... dxc6 {[%clk 0:02:58]} 5. d3 {[%clk 0:02:59.4]}
5... Bg7 {[%clk 0:02:55.7]} 6. f4 {[%clk 0:02:59.2]} 6... b6 {[%clk 0:02:51.7]}
7. Nf3 {[%clk 0:02:59]} 7... Nh6 {[%clk 0:02:51.4]} 8. O-O {[%clk 0:02:57.1]}
8... O-O {[%clk 0:02:51.5]} 9. Qe1 {[%clk 0:02:56.2]} 9... f6 {[%clk 0:02:51]}
10. Qh4 {[%clk 0:02:50.7]} 10... Nf7 {[%clk 0:02:48.5]} 11. Be3 {[%clk
0:02:46.5]} 11... e6 {[%clk 0:02:47.8]} 12. Rad1 {[%clk 0:02:44]} 12... Qe7
{[%clk 0:02:34.9]} 13. a4 {[%clk 0:02:42.1]} 13... Re8 {[%clk 0:02:32.7]} 14. e5
{[%clk 0:02:38.6]} 14... fxe5 {[%clk 0:02:27]} 15. Qg3 {[%clk 0:02:24.9]} 15...
exf4 {[%clk 0:02:18.7]} 16. Bxf4 {[%clk 0:02:24.5]} 16... e5 {[%clk 0:02:08.2]}
17. Bd2 {[%clk 0:02:23.6]} 17... c4 {[%clk 0:01:57.5]} 18. Ne4 {[%clk
0:02:13.4]} 18... cxd3 {[%clk 0:01:56.1]} 19. cxd3 {[%clk 0:02:14.3]} 19... Bf5
{[%clk 0:01:56.2]} 20. Nfg5 {[%clk 0:02:11.3]} 20... Nxg5 {[%clk 0:01:48.4]} 21.
Bxg5 {[%clk 0:02:08]} 21... Qe6 {[%clk 0:01:46.4]} 22. Kh1 {[%clk 0:02:03.1]}
22... Bxe4 {[%clk 0:01:37.5]} 23. dxe4 {[%clk 0:02:02.1]} 23... Rf8 {[%clk
0:01:37.9]} 24. Rfe1 {[%clk 0:01:58.9]} 24... h6 {[%clk 0:01:32.6]} 25. Be3
{[%clk 0:01:52.5]} 25... Rad8 {[%clk 0:01:30.6]} 26. Qh4 {[%clk 0:01:50.4]}
26... Rxd1 {[%clk 0:01:28.2]} 27. Rxd1 {[%clk 0:01:50.1]} 27... Qb3 {[%clk
0:01:18]} 28. Qe1 {[%clk 0:01:24.3]} 28... Qxa4 {[%clk 0:01:13.8]} 29. Rd7
{[%clk 0:01:19.8]} 29... Qxe4 {[%clk 0:01:04.1]} 30. h3 {[%clk 0:01:18.8]} 30...
Qf5 {[%clk 0:00:59.4]} 31. Qb4 {[%clk 0:01:11.2]} 31... Qxd7 {[%clk 0:00:58.1]}
0-1

[Event "*** Titled Tuesday Blitz"]
[Site "Chess.com"]
[Date "2020.12.29"]
[Round "7"]
[White "vladgoncharov"]
[Black "mat_kolosowski"]
[Result "1-0"]
[WhiteElo "2565"]
[BlackElo "2694"]
[TimeControl "180+1"]
[EndTime "11:15:07 PST"]
[Termination "vladgoncharov won on time"]

1. e4 {[%clk 0:03:00.9]} 1... c5 {[%clk 0:02:58]} 2. Nf3 {[%clk 0:03:00.4]} 2...
e6 {[%clk 0:02:58.4]} 3. d4 {[%clk 0:03:00.4]} 3... cxd4 {[%clk 0:02:59.3]} 4.
Nxd4 {[%clk 0:02:59.5]} 4... Nc6 {[%clk 0:02:59.9]} 5. Nc3 {[%clk 0:02:58.5]}
5... Qc7 {[%clk 0:03:00.3]} 6. Ndb5 {[%clk 0:02:42.7]} 6... Qb8 {[%clk
0:02:59.7]} 7. Be3 {[%clk 0:02:42.2]} 7... a6 {[%clk 0:02:59.8]} 8. Nd4 {[%clk
0:02:41.8]} 8... Nf6 {[%clk 0:02:57.6]} 9. Be2 {[%clk 0:02:35.2]} 9... Bb4
{[%clk 0:02:41.7]} 10. f3 {[%clk 0:02:33.4]} 10... d5 {[%clk 0:02:41.5]} 11. O-O
{[%clk 0:02:04.8]} 11... Bd6 {[%clk 0:02:27.7]} 12. g3 {[%clk 0:01:32.7]} 12...
h5 {[%clk 0:02:17]} 13. exd5 {[%clk 0:01:28.8]} 13... exd5 {[%clk 0:02:16.7]}
14. f4 {[%clk 0:01:11.7]} 1-0

[Event "*** Titled Tuesday Blitz"]
[Site "Chess.com"]
[Date "2020.12.29"]
[Round "7"]
[White "Jumbo"]
[Black "biostatistician"]
[Result "1-0"]
[WhiteElo "2827"]
[BlackElo "2604"]
[TimeControl "180+1"]
[EndTime "11:15:16 PST"]
[Termination "Jumbo won by resignation"]

1. d4 {[%clk 0:03:00.9]} 1... Nf6 {[%clk 0:02:59.5]} 2. c4 {[%clk 0:03:01.4]}
2... g6 {[%clk 0:03:00]} 3. Nc3 {[%clk 0:03:01.9]} 3... Bg7 {[%clk 0:03:00.9]}
4. e4 {[%clk 0:03:01.3]} 4... d6 {[%clk 0:03:01.6]} 5. f3 {[%clk 0:03:01.5]}
5... O-O {[%clk 0:03:02.5]} 6. Be3 {[%clk 0:03:01.9]} 6... c5 {[%clk 0:03:03.2]}
7. Nge2 {[%clk 0:03:00]} 7... Nc6 {[%clk 0:03:03.4]} 8. d5 {[%clk 0:02:58.8]}
8... Ne5 {[%clk 0:03:03.5]} 9. Ng3 {[%clk 0:02:59.3]} 9... e6 {[%clk 0:03:03.1]}
10. Be2 {[%clk 0:02:59.2]} 10... exd5 {[%clk 0:03:00.9]} 11. cxd5 {[%clk
0:03:00.1]} 11... a6 {[%clk 0:03:01.2]} 12. a4 {[%clk 0:02:59.4]} 12... Bd7
{[%clk 0:02:59.8]} 13. a5 {[%clk 0:02:55.1]} 13... b5 {[%clk 0:02:58.8]} 14.
axb6 {[%clk 0:02:54.8]} 14... Qxb6 {[%clk 0:02:59.3]} 15. Qc2 {[%clk 0:02:55.1]}
15... Rfb8 {[%clk 0:02:55.4]} 16. Nd1 {[%clk 0:02:54.9]} 16... Bb5 {[%clk
0:01:09.2]} 17. O-O {[%clk 0:02:52.5]} 17... Bxe2 {[%clk 0:01:08.2]} 18. Nxe2
{[%clk 0:02:46.3]} 18... Qb3 {[%clk 0:01:08.4]} 19. Qxb3 {[%clk 0:02:39.7]}
19... Rxb3 {[%clk 0:01:09.3]} 20. Ra4 {[%clk 0:02:28.1]} 20... Nfd7 {[%clk
0:01:01]} 21. Bf4 {[%clk 0:02:13]} 21... Nb6 {[%clk 0:00:59.9]} 22. Ra2 {[%clk
0:02:13.5]} 22... Nbc4 {[%clk 0:00:59.7]} 23. Nc1 {[%clk 0:02:13.9]} 23... Rb6
{[%clk 0:00:57.6]} 24. b3 {[%clk 0:02:13.9]} 24... Nd3 {[%clk 0:00:32.9]} 25.
Nxd3 {[%clk 0:02:10.5]} 25... Rxb3 {[%clk 0:00:33.3]} 26. Nc1 {[%clk 0:02:01.1]}
26... Rb1 {[%clk 0:00:32.4]} 27. Ne2 {[%clk 0:01:59]} 27... Rab8 {[%clk
0:00:30.5]} 28. Ndc3 {[%clk 0:01:58.4]} 28... R1b6 {[%clk 0:00:24]} 29. h4
{[%clk 0:01:52.8]} 29... h5 {[%clk 0:00:23.5]} 30. Rc1 {[%clk 0:01:48.5]} 30...
Bd4+ {[%clk 0:00:16.5]} 31. Nxd4 {[%clk 0:01:47.3]} 31... cxd4 {[%clk
0:00:17.4]} 32. Ne2 {[%clk 0:01:47.6]} 32... d3 {[%clk 0:00:16.8]} 33. Rxc4
{[%clk 0:01:47.1]} 33... dxe2 {[%clk 0:00:14.8]} 34. Rxe2 {[%clk 0:01:48]} 1-0

[Event "*** Titled Tuesday Blitz"]
[Site "Chess.com"]
[Date "2020.12.29"]
[Round "7"]
[White "akanga001"]
[Black "natelleka"]
[Result "0-1"]
[WhiteElo "1948"]
[BlackElo "2206"]
[TimeControl "180+1"]
[EndTime "11:15:16 PST"]
[Termination "natelleka won by checkmate"]

1. d4 {[%clk 0:01:19.9]} 1... d5 {[%clk 0:02:59.1]} 2. c3 {[%clk 0:01:19.9]}
2... Nf6 {[%clk 0:02:55.2]} 3. g3 {[%clk 0:01:19.8]} 3... g6 {[%clk 0:02:53.1]}
4. Bg2 {[%clk 0:01:16.8]} 4... Bg7 {[%clk 0:02:54]} 5. Nf3 {[%clk 0:01:14.2]}
5... O-O {[%clk 0:02:53.7]} 6. O-O {[%clk 0:01:14]} 6... Ne4 {[%clk 0:02:53.5]}
7. Nbd2 {[%clk 0:01:07.6]} 7... c5 {[%clk 0:02:51.2]} 8. dxc5 {[%clk 0:01:07]}
8... Nxc5 {[%clk 0:02:35.7]} 9. Nb3 {[%clk 0:01:06.4]} 9... Ne4 {[%clk
0:02:34.2]} 10. Be3 {[%clk 0:01:05.5]} 10... Nc6 {[%clk 0:02:33.3]} 11. Nfd4
{[%clk 0:01:04.3]} 11... e5 {[%clk 0:02:31.2]} 12. Nxc6 {[%clk 0:01:04]} 12...
bxc6 {[%clk 0:02:30.9]} 13. Qc1 {[%clk 0:01:03.4]} 13... Ba6 {[%clk 0:02:17.3]}
14. Re1 {[%clk 0:01:02]} 14... Qc7 {[%clk 0:02:12.3]} 15. f3 {[%clk 0:01:01.4]}
15... Nf6 {[%clk 0:02:08.1]} 16. Nc5 {[%clk 0:01:01.4]} 16... Bc8 {[%clk
0:02:06.9]} 17. b4 {[%clk 0:00:57.3]} 17... a5 {[%clk 0:02:03.5]} 18. a3 {[%clk
0:00:56.6]} 18... Nd7 {[%clk 0:01:59.1]} 19. Na4 {[%clk 0:00:51.5]} 19... f5
{[%clk 0:01:53.6]} 20. Bh6 {[%clk 0:00:46.5]} 20... f4 {[%clk 0:01:44.9]} 21.
Bxg7 {[%clk 0:00:43.6]} 21... Kxg7 {[%clk 0:01:44.5]} 22. Bh3 {[%clk 0:00:40.1]}
22... fxg3 {[%clk 0:01:29.3]} 23. hxg3 {[%clk 0:00:39.2]} 23... Nf6 {[%clk
0:01:29.1]} 24. Bxc8 {[%clk 0:00:38.2]} 24... Raxc8 {[%clk 0:01:27.9]} 25. Nc5
{[%clk 0:00:38.7]} 25... Rce8 {[%clk 0:01:26.1]} 26. Kg2 {[%clk 0:00:38.4]}
26... Nh5 {[%clk 0:01:23]} 27. Rh1 {[%clk 0:00:36.9]} 27... e4 {[%clk
0:01:21.7]} 28. g4 {[%clk 0:00:35.6]} 28... Qg3+ {[%clk 0:01:19.5]} 29. Kf1
{[%clk 0:00:36.1]} 29... exf3 {[%clk 0:01:18.9]} 30. gxh5 {[%clk 0:00:34.1]}
30... Qg2+ {[%clk 0:01:17.1]} 31. Ke1 {[%clk 0:00:33.7]} 31... Qxe2# {[%clk
0:01:16.7]} 0-1

[Event "*** Titled Tuesday Blitz"]
[Site "Chess.com"]
[Date "2020.12.29"]
[Round "7"]
[White "vladjianu"]
[Black "OK97"]
[Result "0-1"]
[WhiteElo "2585"]
[BlackElo "2794"]
[TimeControl "180+1"]
[EndTime "11:15:17 PST"]
[Termination "OK97 won by resignation"]

1. d4 {[%clk 0:03:00.9]} 1... d6 {[%clk 0:02:59.4]} 2. e4 {[%clk 0:02:54.6]}
2... Nf6 {[%clk 0:02:59.4]} 3. Nc3 {[%clk 0:02:53.8]} 3... g6 {[%clk 0:02:59.4]}
4. f4 {[%clk 0:02:53.7]} 4... Bg7 {[%clk 0:02:59.5]} 5. Nf3 {[%clk 0:02:52.8]}
5... O-O {[%clk 0:03:00]} 6. e5 {[%clk 0:02:50.8]} 6... dxe5 {[%clk 0:02:58.8]}
7. dxe5 {[%clk 0:02:49.1]} 7... Qxd1+ {[%clk 0:02:57.9]} 8. Nxd1 {[%clk
0:02:50]} 8... Nd5 {[%clk 0:02:57.6]} 9. a3 {[%clk 0:02:45.8]} 9... Nc6 {[%clk
0:02:38.7]} 10. c4 {[%clk 0:02:43.1]} 10... Nb6 {[%clk 0:02:35.9]} 11. Ne3
{[%clk 0:02:37.8]} 11... f6 {[%clk 0:02:31.3]} 12. exf6 {[%clk 0:02:31.5]} 12...
Bxf6 {[%clk 0:02:21.9]} 13. Be2 {[%clk 0:02:15.9]} 13... Be6 {[%clk 0:02:13.8]}
14. O-O {[%clk 0:02:08.2]} 14... Nd4 {[%clk 0:02:13.7]} 15. Nxd4 {[%clk
0:01:48.3]} 15... Bxd4 {[%clk 0:02:14.6]} 16. Rd1 {[%clk 0:01:39.7]} 16... Rxf4
{[%clk 0:02:02.9]} 17. Kh1 {[%clk 0:01:19.8]} 17... Bxe3 {[%clk 0:01:38.5]} 18.
Bxe3 {[%clk 0:01:17.9]} 18... Re4 {[%clk 0:01:39]} 19. Bxb6 {[%clk 0:01:13.9]}
19... Rxe2 {[%clk 0:01:32.4]} 20. Bxc7 {[%clk 0:01:03.4]} 20... Rc8 {[%clk
0:01:32.5]} 21. Bd8 {[%clk 0:00:34.3]} 21... Bxc4 {[%clk 0:01:15.6]} 22. Rac1
{[%clk 0:00:33.2]} 22... Rc6 {[%clk 0:01:13.3]} 23. Re1 {[%clk 0:00:17.2]} 23...
Bd5 {[%clk 0:01:12.4]} 0-1

[Event "*** Titled Tuesday Blitz"]
[Site "Chess.com"]
[Date "2020.12.29"]
[Round "7"]
[White "CM_rui"]
[Black "AlessiaSanteramo"]
[Result "1-0"]
[WhiteElo "2348"]
[BlackElo "2145"]
[TimeControl "180+1"]
[EndTime "11:15:20 PST"]
[Termination "CM_rui won by resignation"]

1. e4 {[%clk 0:03:00.9]} 1... e5 {[%clk 0:02:53.4]} 2. Nc3 {[%clk 0:02:59.2]}
2... Nf6 {[%clk 0:02:44.4]} 3. f4 {[%clk 0:02:59.3]} 3... d5 {[%clk 0:02:44]} 4.
fxe5 {[%clk 0:02:59.4]} 4... Nxe4 {[%clk 0:02:43.6]} 5. d3 {[%clk 0:03:00]} 5...
Nxc3 {[%clk 0:02:36.6]} 6. bxc3 {[%clk 0:03:00.9]} 6... d4 {[%clk 0:02:36.7]} 7.
Nf3 {[%clk 0:03:00.9]} 7... dxc3 {[%clk 0:02:36.4]} 8. d4 {[%clk 0:03:00]} 8...
c5 {[%clk 0:02:36.3]} 9. Bc4 {[%clk 0:02:55.7]} 9... cxd4 {[%clk 0:02:35.7]} 10.
O-O {[%clk 0:02:54.7]} 10... Be6 {[%clk 0:01:48.8]} 11. Bxe6 {[%clk 0:02:33.6]}
11... fxe6 {[%clk 0:01:42]} 12. Ng5 {[%clk 0:02:33.4]} 12... Qd5 {[%clk
0:01:08.7]} 13. Qg4 {[%clk 0:01:46.9]} 13... Nc6 {[%clk 0:00:38.2]} 14. Nxe6
{[%clk 0:01:32.4]} 14... Qxe5 {[%clk 0:00:38.2]} 15. Bf4 {[%clk 0:01:31.6]}
15... Qa5 {[%clk 0:00:09.6]} 16. Nc7+ {[%clk 0:01:06.9]} 16... Kd8 {[%clk
0:00:07.4]} 17. Nxa8 {[%clk 0:01:04.1]} 17... Be7 {[%clk 0:00:04.5]} 18. Bc7+
{[%clk 0:01:03.3]} 1-0

[Event "*** Titled Tuesday Blitz"]
[Site "Chess.com"]
[Date "2020.12.29"]
[Round "7"]
[White "rasmussvane"]
[Black "MokshanovAlexey"]
[Result "1-0"]
[WhiteElo "2883"]
[BlackElo "2638"]
[TimeControl "180+1"]
[EndTime "11:15:22 PST"]
[Termination "rasmussvane won by resignation"]

1. Nf3 {[%clk 0:03:00.9]} 1... d5 {[%clk 0:02:24]} 2. g3 {[%clk 0:03:00.7]} 2...
Nf6 {[%clk 0:02:23.4]} 3. Bg2 {[%clk 0:03:00.7]} 3... e6 {[%clk 0:02:20]} 4. O-O
{[%clk 0:03:01]} 4... Be7 {[%clk 0:02:20.3]} 5. c4 {[%clk 0:03:01.5]} 5... O-O
{[%clk 0:02:19.7]} 6. b3 {[%clk 0:03:02.1]} 6... b6 {[%clk 0:02:19.9]} 7. d4
{[%clk 0:03:02]} 7... Bb7 {[%clk 0:02:20]} 8. Nc3 {[%clk 0:03:02.5]} 8... dxc4
{[%clk 0:02:19.9]} 9. bxc4 {[%clk 0:03:02.6]} 9... c5 {[%clk 0:02:20]} 10. d5
{[%clk 0:03:03]} 10... exd5 {[%clk 0:02:19.8]} 11. Nh4 {[%clk 0:03:02.6]} 11...
Ne4 {[%clk 0:02:16.9]} 12. Nxd5 {[%clk 0:03:02]} 12... Bxd5 {[%clk 0:02:08.7]}
13. cxd5 {[%clk 0:03:02.9]} 13... Bxh4 {[%clk 0:02:03.3]} 14. Bxe4 {[%clk
0:03:01.9]} 14... Bf6 {[%clk 0:02:03.2]} 15. Rb1 {[%clk 0:02:18.1]} 15... Qd6
{[%clk 0:01:54.6]} 16. Qc2 {[%clk 0:02:14.2]} 16... Nd7 {[%clk 0:01:41.9]} 17.
Bxh7+ {[%clk 0:02:12.6]} 17... Kh8 {[%clk 0:01:42.2]} 18. Qf5 {[%clk 0:02:02.8]}
18... g5 {[%clk 0:01:12.3]} 19. f4 {[%clk 0:01:51.3]} 19... Kg7 {[%clk
0:01:08.1]} 20. fxg5 {[%clk 0:01:51.2]} 20... Bd4+ {[%clk 0:01:08.3]} 21. e3
{[%clk 0:01:51.4]} 21... Be5 {[%clk 0:01:08.6]} 22. Rb2 {[%clk 0:01:04.1]} 22...
Rae8 {[%clk 0:01:06.7]} 23. Rbf2 {[%clk 0:01:02.9]} 23... Re7 {[%clk 0:01:06.2]}
24. Qh3 {[%clk 0:00:47.3]} 24... Rh8 {[%clk 0:00:50.4]} 25. Qh5 {[%clk
0:00:46.9]} 25... f5 {[%clk 0:00:46.5]} 26. gxf6+ {[%clk 0:00:43.6]} 1-0

[Event "*** Titled Tuesday Blitz"]
[Site "Chess.com"]
[Date "2020.12.29"]
[Round "7"]
[White "Skatchkov_V"]
[Black "horripile"]
[Result "0-1"]
[WhiteElo "2515"]
[BlackElo "2688"]
[TimeControl "180+1"]
[EndTime "11:15:22 PST"]
[Termination "horripile won by resignation"]

1. d4 {[%clk 0:03:00]} 1... Nf6 {[%clk 0:02:55.8]} 2. c4 {[%clk 0:03:00.1]} 2...
g6 {[%clk 0:02:52.4]} 3. Nf3 {[%clk 0:03:00.5]} 3... Bg7 {[%clk 0:02:52]} 4. g3
{[%clk 0:02:58]} 4... O-O {[%clk 0:02:52.4]} 5. Bg2 {[%clk 0:02:58.9]} 5... d6
{[%clk 0:02:53.2]} 6. O-O {[%clk 0:02:58.5]} 6... c6 {[%clk 0:02:54.1]} 7. Nc3
{[%clk 0:02:58.7]} 7... Nbd7 {[%clk 0:02:54.3]} 8. e4 {[%clk 0:02:57.4]} 8... e5
{[%clk 0:02:54.4]} 9. h3 {[%clk 0:02:52.6]} 9... exd4 {[%clk 0:02:52.7]} 10.
Nxd4 {[%clk 0:02:52]} 10... Qb6 {[%clk 0:02:53.6]} 11. Nb3 {[%clk 0:02:32.2]}
11... Ne8 {[%clk 0:02:52.2]} 12. Be3 {[%clk 0:02:31.3]} 12... Qb4 {[%clk
0:02:52.3]} 13. Qe2 {[%clk 0:02:28.3]} 13... Ne5 {[%clk 0:02:50.7]} 14. c5
{[%clk 0:02:27.5]} 14... Nc4 {[%clk 0:02:46.7]} 15. cxd6 {[%clk 0:01:53.4]}
15... Nxe3 {[%clk 0:02:46]} 16. Qxe3 {[%clk 0:01:54.3]} 16... Nxd6 {[%clk
0:02:45.6]} 17. Rac1 {[%clk 0:01:50.2]} 17... Nc4 {[%clk 0:02:45.4]} 18. Qe2
{[%clk 0:01:50.2]} 18... a5 {[%clk 0:02:43]} 19. Nd1 {[%clk 0:01:19.1]} 19...
Be6 {[%clk 0:02:36.9]} 20. f4 {[%clk 0:01:14.6]} 20... a4 {[%clk 0:02:33.2]} 21.
f5 {[%clk 0:01:12.1]} 21... axb3 {[%clk 0:02:28.9]} 22. a3 {[%clk 0:01:10.8]}
22... Qc5+ {[%clk 0:02:25.8]} 23. Kh1 {[%clk 0:01:11]} 23... gxf5 {[%clk
0:02:23]} 24. exf5 {[%clk 0:01:06.1]} 24... Bd5 {[%clk 0:02:23.3]} 25. f6 {[%clk
0:01:05.6]} 25... Bh6 {[%clk 0:02:21.7]} 26. Rf4 {[%clk 0:00:52.9]} 26... Rfe8
{[%clk 0:02:16.4]} 27. Qg4+ {[%clk 0:00:32.8]} 27... Kh8 {[%clk 0:02:15.6]} 28.
Kh2 {[%clk 0:00:28.2]} 28... Re1 {[%clk 0:02:07.7]} 29. Nf2 {[%clk 0:00:18]}
29... Rxc1 {[%clk 0:02:05.5]} 30. Rf5 {[%clk 0:00:16.6]} 30... Ne3 {[%clk
0:02:02.9]} 31. Qh5 {[%clk 0:00:11.5]} 31... Nxf5 {[%clk 0:01:36.4]} 0-1

[Event "*** Titled Tuesday Blitz"]
[Site "Chess.com"]
[Date "2020.12.29"]
[Round "7"]
[White "Moon_stone123"]
[Black "pavelalexandru07"]
[Result "1-0"]
[WhiteElo "2433"]
[BlackElo "2275"]
[TimeControl "180+1"]
[EndTime "11:15:24 PST"]
[Termination "Moon_stone123 won by resignation"]

1. Nf3 {[%clk 0:03:00.9]} 1... c5 {[%clk 0:02:57.1]} 2. g3 {[%clk 0:03:01.8]}
2... g6 {[%clk 0:02:56.7]} 3. Bg2 {[%clk 0:03:01]} 3... Bg7 {[%clk 0:02:57.6]}
4. O-O {[%clk 0:03:01.7]} 4... Nc6 {[%clk 0:02:57.8]} 5. c4 {[%clk 0:03:00.2]}
5... e6 {[%clk 0:02:56.7]} 6. Nc3 {[%clk 0:02:58.2]} 6... Nge7 {[%clk
0:02:56.6]} 7. d4 {[%clk 0:02:53.4]} 7... cxd4 {[%clk 0:02:52.1]} 8. Nb5 {[%clk
0:02:53.1]} 8... Nf5 {[%clk 0:02:40.9]} 9. g4 {[%clk 0:02:50.3]} 9... a6 {[%clk
0:02:41.2]} 10. Qa4 {[%clk 0:02:29.7]} 10... Nh4 {[%clk 0:02:06.5]} 11. Nxh4
{[%clk 0:02:26.3]} 11... Qxh4 {[%clk 0:01:55.5]} 12. Nc7+ {[%clk 0:02:26]} 12...
Kf8 {[%clk 0:01:52.6]} 13. Nxa8 {[%clk 0:02:26.9]} 13... h5 {[%clk 0:01:42.1]}
14. g5 {[%clk 0:02:25.2]} 14... Be5 {[%clk 0:01:34.7]} 15. f4 {[%clk 0:02:21.5]}
15... Bd6 {[%clk 0:01:31.3]} 16. Qd1 {[%clk 0:02:19.1]} 16... Bc5 {[%clk
0:01:19.7]} 17. Kh1 {[%clk 0:02:15.1]} 17... d6 {[%clk 0:01:13.5]} 18. Qe1
{[%clk 0:02:11]} 18... Qxe1 {[%clk 0:01:12.7]} 19. Rxe1 {[%clk 0:02:10.2]} 19...
Ke7 {[%clk 0:01:13.6]} 20. e3 {[%clk 0:01:59]} 20... Bd7 {[%clk 0:01:11]} 21.
Nc7 {[%clk 0:01:58.7]} 21... Kd8 {[%clk 0:01:10.6]} 22. exd4 {[%clk 0:01:55]}
22... Bxd4 {[%clk 0:01:10.4]} 23. Nxe6+ {[%clk 0:01:50.6]} 23... Bxe6 {[%clk
0:01:08.5]} 24. Bd5 {[%clk 0:01:45]} 24... Bg4 {[%clk 0:00:53.5]} 25. Kg2 {[%clk
0:01:36.7]} 25... Rf8 {[%clk 0:00:37.6]} 26. Be3 {[%clk 0:01:31.3]} 26... Bxb2
{[%clk 0:00:37.1]} 27. Rab1 {[%clk 0:01:31]} 27... Bc3 {[%clk 0:00:36.6]} 28.
Rec1 {[%clk 0:01:27.2]} 28... Bd4 {[%clk 0:00:19.2]} 29. Bxd4 {[%clk 0:01:24.9]}
29... Nxd4 {[%clk 0:00:20.1]} 30. Rxb7 {[%clk 0:01:21.4]} 30... Ne2 {[%clk
0:00:19]} 31. Rf1 {[%clk 0:01:17.9]} 31... Nxf4+ {[%clk 0:00:19.9]} 32. Rxf4
{[%clk 0:01:16.5]} 1-0

[Event "*** Titled Tuesday Blitz"]
[Site "Chess.com"]
[Date "2020.12.29"]
[Round "7"]
[White "kai_nov"]
[Black "nitpicker"]
[Result "1-0"]
[WhiteElo "2381"]
[BlackElo "2252"]
[TimeControl "180+1"]
[EndTime "11:15:26 PST"]
[Termination "kai_nov won by resignation"]

1. d4 {[%clk 0:03:00.9]} 1... Nf6 {[%clk 0:02:59.5]} 2. c4 {[%clk 0:03:00.3]}
2... e6 {[%clk 0:02:59.7]} 3. Nc3 {[%clk 0:02:59.9]} 3... Bb4 {[%clk 0:02:59.4]}
4. f3 {[%clk 0:02:59.8]} 4... c5 {[%clk 0:02:58]} 5. d5 {[%clk 0:02:56.9]} 5...
O-O {[%clk 0:02:58.1]} 6. e4 {[%clk 0:02:42.5]} 6... b5 {[%clk 0:02:58]} 7. e5
{[%clk 0:02:36.6]} 7... Ne8 {[%clk 0:02:54]} 8. f4 {[%clk 0:02:34.6]} 8... d6
{[%clk 0:02:48.5]} 9. Nf3 {[%clk 0:02:32.8]} 9... Bb7 {[%clk 0:02:21.7]} 10.
dxe6 {[%clk 0:02:11.8]} 10... fxe6 {[%clk 0:02:16.2]} 11. exd6 {[%clk
0:02:06.8]} 11... Qxd6 {[%clk 0:02:03.9]} 12. Qe2 {[%clk 0:01:44.8]} 12... bxc4
{[%clk 0:01:59.3]} 13. Bd2 {[%clk 0:01:30.4]} 13... Nc6 {[%clk 0:01:58.1]} 14.
Qxc4 {[%clk 0:01:12.2]} 14... Nd4 {[%clk 0:01:55.6]} 15. O-O-O {[%clk
0:00:22.5]} 15... Nxf3 {[%clk 0:01:49]} 16. gxf3 {[%clk 0:00:22.1]} 16... Bxf3
{[%clk 0:01:48.9]} 17. Bh3 {[%clk 0:00:21.3]} 17... Bxh1 {[%clk 0:01:43.7]} 18.
Rxh1 {[%clk 0:00:20.5]} 18... Nc7 {[%clk 0:01:40.4]} 19. a3 {[%clk 0:00:19.6]}
19... Ba5 {[%clk 0:01:38.4]} 20. Rg1 {[%clk 0:00:19.4]} 20... Qd5 {[%clk
0:01:31.7]} 21. Nxd5 {[%clk 0:00:18.7]} 21... Bxd2+ {[%clk 0:01:29.6]} 22. Kxd2
{[%clk 0:00:18]} 22... exd5 {[%clk 0:01:28.8]} 23. Qxc5 {[%clk 0:00:18]} 23...
Ne8 {[%clk 0:01:23]} 24. Qe7 {[%clk 0:00:17.3]} 24... Rb8 {[%clk 0:01:19]} 25.
Bd7 {[%clk 0:00:15.1]} 25... Rb7 {[%clk 0:01:16.2]} 26. Be6+ {[%clk 0:00:14.8]}
1-0